bitfinex-derivatives/quotes_SOLF0:USTF0_20250110
["timestamp","ask_amount","ask_price","bid_price","bid_amount"]
[1736535904701,11.13274653,190.11,190.08,4.88]
[1736535905699,2.6298,190.12,190.08,7.5103]
[1736535907009,8.50274653,190.13,190.08,7.5103]
[1736535907205,2.6299,190.11,190.08,7.5103]
[1736535907708,11.13264653,190.11,190.08,4.88]
[1736535907905,8.50274653,190.11,190.08,4.88]
[1736535908100,2.63,190.1,190.07,2.6303]
[1736535908305,8.50274653,190.09,190.05,2.6307]
[1736535908710,8.50274653,190.09,190.03,2.6309]
[1736535908906,8.50274653,190.07,190.01,8.50274653]
[1736535909114,2.631,190.03,189.97,7.29808782]
[1736535909310,2.631,190.03,189.99,2.6315]
[1736535909613,2.631,190.03,189.98,8.50274653]
[1736535909810,2.631,190.03,189.97,2.6317]
[1736535909811,8.50274653,190.03,189.97,2.6317]
[1736535910010,8.50274653,190.03,189.96,8.50274653]
[1736535910209,2.6317,189.98,189.93,37.69509781]
[1736535910510,2.6317,189.98,189.93,40.32739781]
[1736535911108,2.6317,189.98,189.93,11.13504653]
[1736535911304,2.6319,189.97,189.93,8.50274653]
[1736535911611,8.50274653,189.97,189.88,12.17808782]
[1736535911810,8.50274653,189.97,189.9,8.50274653]
[1736535912012,2.6321,189.96,189.91,2.6326]
[1736535913717,1.5764,190.0,189.94,8.50274653]
[1736535913908,1.5601,190.01,189.94,8.50274653]
[1736535914108,8.50274653,190.0,189.94,8.50274653]
[1736535914307,2.6316,189.99,189.94,8.50274653]
[1736535914712,1.5601,190.01,189.88,4.88]
[1736535914917,8.50274653,189.96,189.86,7.29808782]
[1736535915112,8.50274653,189.96,189.88,8.50274653]
[1736535915307,11.13484653,189.96,189.9,11.13544653]
[1736535915506,8.50274653,189.96,189.88,8.50274653]
[1736535915713,1.5601,190.01,189.81,29.36425128]
[1736535915906,8.50274653,189.86,189.81,29.19235128]
[1736535916313,2.6335,189.85,189.81,29.19235128]
[1736535917017,2.6335,189.85,189.79,8.50274653]
[1736535917219,1.5051,189.93,189.79,8.50274653]
[1736535917220,2.6337,189.84,189.79,8.50274653]
[1736535917516,8.50274653,189.82,189.76,4.88]
[1736535917717,8.50274653,189.82,189.76,13.38274653]
[1736535917910,8.50274653,189.82,189.76,8.50274653]
[1736535918417,8.50274653,189.84,189.76,8.50274653]
[1736535919017,11.13664653,189.82,189.75,2.6349]
[1736535919217,8.50274653,189.82,189.74,8.50274653]
[1736535919418,12.00035871,189.84,189.73,4.88]
[1736535919620,2.6339,189.82,189.75,2.6348]
[1736535920015,1.6082,189.83,189.73,4.88]
[1736535920423,1.6082,189.83,189.76,2.6347]
[1736535920720,1.6082,189.83,189.73,4.88]
[1736535920917,2.6343,189.8,189.73,4.88]
[1736535921114,12.00035871,189.81,189.7,12.00035871]
[1736535921319,12.00035871,189.78,189.67,12.00035871]
[1736535921620,2.635,189.74,189.68,2.6358]
[1736535922316,2.6353,189.72,189.66,2.6361]
[1736535922521,12.00035871,189.75,189.64,4.88]
[1736535923321,12.00035871,189.75,189.67,2.636]
[1736535923823,12.00035871,189.75,189.64,4.88]
[1736535924022,12.00035871,189.75,189.66,2.6361]
[1736535924219,12.00035871,189.72,189.62,4.9]
[1736535924415,2.6357,189.69,189.6,12.00035871]
[1736535924618,3.2305,189.71,189.6,12.00035871]
[1736535924922,2.6358,189.69,189.62,2.6367]
[1736535925320,3.2305,189.71,189.57,12.00035871]
[1736535925625,12.00035871,189.69,189.57,12.00035871]
[1736535925828,3.2305,189.71,189.6,12.00035871]
[1736535926327,5.866,189.71,189.65,2.6363]
[1736535926528,3.2305,189.71,189.65,2.6363]
[1736535926929,5.866,189.71,189.64,2.6364]
[1736535927126,3.2305,189.71,189.6,12.00035871]
[1736535927721,2.6359,189.68,189.58,4.9]
[1736535927926,12.00035871,189.69,189.58,4.9]
[1736535928127,3.2305,189.71,189.6,12.00035871]
[1736535928425,2.6357,189.69,189.64,2.6364]
[1736535928627,3.2305,189.71,189.64,2.6364]
[1736535928828,2.6356,189.7,189.63,2.6365]
[1736535929028,3.2305,189.71,189.6,12.00035871]
[1736535929433,2.6357,189.7,189.64,2.6363]
[1736535929727,3.2305,189.71,189.64,2.6363]
[1736535930925,3.2305,189.71,189.63,2.6365]
[1736535931225,12.00035871,189.66,189.53,12.00035871]
[1736535931429,1.6263,189.65,189.53,12.00035871]
[1736535931630,1.6263,189.65,189.56,2.6375]
[1736535931930,2.6366,189.63,189.56,2.6375]
[1736535932129,1.5111,189.62,189.56,2.6375]
[1736535932427,12.00035871,189.57,189.41,4.94]
[1736535932628,12.00035871,189.57,189.45,12.00035871]
[1736535933030,12.00035871,189.6,189.45,12.00035871]
[1736535933234,12.00035871,189.6,189.52,2.6381]
[1736535933420,12.00035871,189.6,189.48,12.00035871]
[1736535933827,8.1057,189.62,189.48,12.00035871]
[1736535934125,8.1057,189.62,189.45,12.00035871]
[1736535934126,3.1457,189.62,189.54,12.00035871]
[1736535934332,1.5111,189.62,189.6,2.6369]
[1736535934534,1.6263,189.65,189.57,16.98035871]
[1736535934828,1.6263,189.65,189.6,2.6369]
[1736535935832,4.2626,189.65,189.6,2.6369]
[1736535937933,4.2626,189.65,189.57,4.98]
[1736535938137,4.2626,189.65,189.61,2.6368]
[1736535938433,3.0275,189.71,189.57,16.98035871]
[1736535938633,1.4966,189.7,189.57,16.98035871]
[1736535939036,2.6357,189.69,189.57,16.98035871]
[1736535939231,1.4966,189.7,189.57,16.98035871]
[1736535939232,1.4966,189.7,189.64,2.6364]
[1736535939828,1.4966,189.7,189.65,2.6362]
[1736535940034,1.4966,189.7,189.6,12.00035871]
[1736535941735,12.00035871,189.75,189.63,12.00035871]
[1736535942434,12.00035871,189.75,189.64,4.98]
[1736535942637,12.00035871,189.72,189.65,2.6362]
[1736535943137,12.00035871,189.75,189.64,4.98]
[1736535943634,2.635,189.74,189.68,2.6357]
[1736535943835,12.00035871,189.75,189.68,2.6357]
[1736535944035,12.00035871,189.75,189.64,4.98]
[1736535945140,2.635,189.74,189.67,2.6359]
[1736535945338,12.00035871,189.75,189.64,4.98]
[1736535946238,12.00035871,189.75,189.67,2.6359]
[1736535946438,12.00035871,189.75,189.64,4.98]
[1736535947438,2.6351,189.74,189.67,2.6359]
[1736535947739,12.00035871,189.75,189.64,4.98]
[1736535948537,12.00035871,189.75,189.65,4.96]
[1736535948736,2.6354,189.72,189.67,2.6358]
[1736535948935,12.00035871,189.75,189.65,4.96]
[1736535949437,2.635,189.74,189.69,2.6356]
[1736535949839,12.00035871,189.75,189.65,4.96]
[1736535950235,4.6682,189.79,189.65,4.96]
[1736535950441,2.6356,189.7,189.66,2.6361]
[1736535950639,2.6356,189.7,189.65,4.96]
[1736535951143,2.6356,189.7,189.65,7.5961]
[1736535951342,2.6358,189.69,189.63,4.96]
[1736535951531,2.6358,189.69,189.64,2.6363]
[1736535951736,3.2064,189.71,189.63,4.96]
[1736535952241,3.2064,189.71,189.67,2.6359]
[1736535952642,5.8418,189.71,189.67,2.6359]
[1736535952945,3.2064,189.71,189.69,2.6357]
[1736535953145,3.2064,189.71,189.63,16.96035871]
[1736535953645,2.6353,189.73,189.63,16.96035871]
[1736535954040,2.6353,189.73,189.66,2.6361]
[1736535954241,2.6353,189.72,189.63,16.96035871]
[1736535954643,12.00035871,189.75,189.63,16.96035871]
[1736535954842,2.6352,189.73,189.63,16.96035871]
[1736535955247,12.00035871,189.75,189.68,2.6357]
[1736535955441,2.6353,189.72,189.68,2.6357]
[1736535956641,2.6353,189.72,189.63,16.96035871]
[1736535956847,2.6353,189.72,189.69,2.6357]
[1736535959239,12.00035871,189.75,189.63,16.96035871]
[1736535959549,2.6356,189.7,189.67,2.6359]
[1736535959945,12.00035871,189.75,189.63,4.96]
[1736535960546,12.00035871,189.75,189.63,16.96035871]
[1736535960950,15.03965871,189.78,189.63,16.96035871]
[1736535961150,2.6346,189.77,189.66,12.00035871]
[1736535961751,15.03965871,189.78,189.66,12.00035871]
[1736535961951,2.6347,189.76,189.66,12.00035871]
[1736535962653,2.6347,189.76,189.72,2.6352]
[1736535963552,15.03965871,189.78,189.68,4.96]
[1736535963756,12.00035871,189.75,189.68,4.96]
[1736535964052,2.6352,189.73,189.7,2.6355]
[1736535965453,2.635,189.74,189.7,2.6355]
[1736535965855,15.03965871,189.78,189.68,4.96]
[1736535966357,15.03965871,189.78,189.71,2.6354]
[1736535966554,2.6346,189.77,189.68,4.96]
[1736535966951,15.03965871,189.78,189.68,4.96]
[1736535967156,1.5124,189.78,189.69,12.00035871]
[1736535967356,0.29999,189.8,189.69,12.00035871]
[1736535967559,0.29999,189.8,189.72,12.00035871]
[1736535967861,0.29999,189.8,189.68,4.96]
[1736535967862,0.29999,189.8,189.69,12.00035871]
[1736535968058,0.29999,189.8,189.74,2.635]
[1736535968357,0.29999,189.8,189.69,12.00035871]
[1736535968557,0.29999,189.8,189.72,2.6352]
[1736535968763,12.00035871,189.78,189.72,2.6352]
[1736535969058,2.6349,189.76,189.71,2.6353]
[1736535969557,2.6349,189.75,189.71,2.6353]
[1736535969857,12.00035871,189.78,189.66,12.00035871]
[1736535970049,0.29999,189.8,189.59,7.29808782]
[1736535970050,2.6356,189.71,189.61,12.00035871]
[1736535970250,2.6356,189.71,189.62,4.94]
[1736535970558,1.4969,189.75,189.64,12.00035871]
[1736535970754,1.4969,189.75,189.63,12.00035871]
[1736535971361,2.6353,189.72,189.63,12.00035871]
[1736535971551,2.6353,189.72,189.68,2.6358]
[1736535971960,1.4969,189.75,189.63,12.00035871]
[1736535972561,2.635,189.74,189.63,12.00035871]
[1736535972863,12.00035871,189.67,189.56,13.2206135]
[1736535973058,17.26235871,189.7,189.56,25.22097221]
[1736535973260,1.6052,189.69,189.56,25.22097221]
[1736535973557,12.00035871,189.67,189.56,17.92288439]
[1736535973763,2.6364,189.64,189.59,2.6371]
[1736535975058,12.00035871,189.67,189.56,17.92288439]
[1736535975262,1.6052,189.69,189.56,17.92288439]
[1736535975461,1.6052,189.69,189.59,12.00035871]
[1736535975861,2.636,189.67,189.62,2.6367]
[1736535976969,1.6052,189.69,189.59,12.00035871]
[1736535977260,12.00035871,189.73,189.62,12.00035871]
[1736535977663,1.4969,189.75,189.62,12.00035871]
[1736535978063,2.6353,189.73,189.67,2.6359]
[1736535978263,2.6353,189.73,189.62,12.00035871]
[1736535978963,1.4969,189.75,189.65,12.00035871]
[1736535979158,1.4969,189.75,189.71,2.6354]
[1736535979363,1.5669,189.76,189.65,12.00035871]
[1736535979566,1.5669,189.76,189.68,12.00035871]
[1736535979965,12.00035871,189.79,189.73,2.6351]
[1736535980366,2.6346,189.78,189.73,2.6351]
[1736535981058,12.00035871,189.79,189.75,2.6348]
[1736535981364,4.53539,189.8,189.75,2.6348]
[1736535981764,12.00035871,189.79,189.68,5.0]
[1736535982268,12.00035871,189.79,189.68,17.00035871]
[1736535982471,2.6345,189.78,189.73,2.635]
[1736535982773,1.90119,189.8,189.71,12.00035871]
[1736535983465,1.90119,189.8,189.73,2.635]
[1736535983665,1.90119,189.8,189.71,12.00035871]
[1736535984771,17.86752519,189.89,189.77,12.00035871]
[1736535984961,19.42742519,189.89,189.77,12.00035871]
[1736535985163,13.56025871,189.89,189.83,2.6337]
[1736535985365,13.56025871,189.89,189.77,12.00035871]
[1736535986069,1.5599,189.89,189.8,12.00035871]
[1736535986265,1.5599,189.89,189.85,2.6334]
[1736535986471,1.5599,189.89,189.78,58.12960558]
[1736535986672,13.56025871,189.89,189.78,58.12960558]
[1736535987371,1.5599,189.89,189.8,12.00035871]
[1736535987973,1.5599,189.89,189.82,2.6338]
[1736535987974,2.6331,189.88,189.82,2.6338]
[1736535988674,2.6331,189.88,189.8,12.00035871]
[1736535988972,2.6331,189.88,189.83,2.6337]
[1736535989863,1.84224,189.89,189.8,12.00035871]
[1736535990067,1.84224,189.89,189.77,12.00035871]
[1736535990272,1.5513,189.88,189.77,12.00035871]
[1736535990780,12.00035871,189.87,189.77,12.00035871]
[1736535991072,13.61405871,189.87,189.77,12.00035871]
[1736535991271,2.6335,189.85,189.8,2.6342]
[1736535992074,13.61405871,189.87,189.81,2.634]
[1736535992277,1.6137,189.87,189.77,12.00035871]
[1736535992577,1.5513,189.88,189.84,2.6335]
[1736535992776,1.5513,189.88,189.8,12.00035871]
[1736535993272,1.5513,189.88,189.77,19.18543801]
[1736535993874,4.1844,189.88,189.83,2.6336]
[1736535994174,1.5513,189.88,189.77,19.18543801]
[1736535994369,1.5513,189.88,189.8,2.6341]
[1736535994569,1.5513,189.88,189.77,19.18543801]
[1736535994973,1.5513,189.88,189.83,2.6336]
[1736535995173,2.6332,189.87,189.83,2.6336]
[1736535995470,1.5513,189.88,189.75,29.19235128]
[1736535995673,2.6339,189.82,189.75,29.19235128]
[1736535995874,1.6551,189.87,189.74,58.38470256]
[1736535996072,1.6551,189.87,189.76,2.6347]
[1736535996276,2.6342,189.8,189.73,7.29808782]
[1736535996476,19.18543801,189.85,189.73,7.29808782]
[1736535996673,19.18543801,189.85,189.76,2.6346]
[1736535996980,2.6341,189.81,189.76,2.6346]
[1736535997677,19.18543801,189.85,189.77,2.6345]
[1736535997980,19.18543801,189.85,189.71,19.18543801]
[1736535998176,19.18543801,189.85,189.77,2.6345]
[1736535998380,2.634,189.82,189.71,19.18543801]
[1736535998880,2.6343,189.79,189.7,7.29808782]
[1736535999078,19.18543801,189.85,189.71,5.0]
[1736535999580,2.6339,189.82,189.77,2.6345]
[1736536000080,2.6339,189.82,189.71,24.18543801]
[1736536000777,1.6551,189.87,189.74,19.18543801]
[1736536001080,1.5513,189.88,189.77,19.18543801]
[1736536001382,4.1844,189.88,189.77,19.18543801]
[1736536001771,4.1844,189.88,189.83,2.6337]
[1736536002174,1.5513,189.88,189.83,2.6337]
[1736536002380,2.6332,189.87,189.83,2.6337]
[1736536003983,1.5513,189.88,189.75,7.27155615]
[1736536004280,19.18543801,189.84,189.75,7.27155615]
[1736536004488,1.5338,189.86,189.75,7.27155615]
[1736536004679,1.5338,189.86,189.72,19.18543801]
[1736536005179,1.5338,189.86,189.8,2.6341]
[1736536005180,2.6335,189.85,189.8,2.6341]
[1736536005383,1.5338,189.86,189.73,13.17682915]
[1736536005783,1.5338,189.86,189.73,7.27155615]
[1736536006186,1.5338,189.86,189.72,41.00010646]
[1736536006386,2.6342,189.8,189.74,2.6349]
[1736536006585,2.6342,189.8,189.7,12.27155615]
[1736536007087,2.6342,189.8,189.75,2.6348]
[1736536007786,2.6345,189.78,189.7,5.0]
[1736536008091,19.18543801,189.84,189.69,7.27155615]
[1736536008392,2.6343,189.8,189.69,26.45699416]
[1736536008782,2.6344,189.79,189.74,2.6349]
[1736536008988,19.18543801,189.84,189.69,26.45699416]
[1736536009186,19.18543801,189.84,189.69,19.18543801]
[1736536009387,2.6342,189.8,189.74,2.635]
[1736536009587,19.18543801,189.84,189.74,2.635]
[1736536009990,19.18543801,189.84,189.7,7.27155615]
[1736536010180,19.18543801,189.84,189.72,2.6352]
[1736536010692,2.6347,189.77,189.73,2.6351]
[1736536010890,19.18543801,189.84,189.73,2.6351]
[1736536011187,2.6352,189.73,189.7,2.6355]
[1736536011385,19.18543801,189.78,189.69,7.27155615]
[1736536011581,3.1752,189.77,189.69,7.27155615]
[1736536011989,2.6354,189.72,189.69,7.27155615]
[1736536012192,2.6354,189.72,189.68,2.6357]
[1736536012386,2.6354,189.72,189.65,29.0862246]
[1736536012591,2.6354,189.72,189.69,2.6356]
[1736536012790,2.6354,189.72,189.65,7.27155615]
[1736536013794,19.18543801,189.74,189.65,7.27155615]
[1736536014095,19.18543801,189.71,189.64,21.81466845]
[1736536014489,2.6363,189.65,189.64,21.81466845]
[1736536014998,19.18543801,189.68,189.56,5.92252568]
[1736536015391,19.18543801,189.68,189.6,2.6368]
[1736536015797,19.18543801,189.71,189.56,5.92252568]
[1736536017099,2.6366,189.63,189.56,5.92252568]
[1736536017398,19.18543801,189.68,189.56,5.92252568]
[1736536017994,2.6365,189.64,189.59,2.6371]
[1736536019999,2.6365,189.64,189.56,5.92252568]
[1736536020305,19.18543801,189.71,189.56,5.92252568]
[1736536020493,19.18543801,189.68,189.56,5.92252568]
[1736536020898,2.6367,189.63,189.58,2.6372]
[1736536021399,2.6369,189.61,189.56,8.55992568]
[1736536021602,2.6369,189.61,189.56,2.6374]
[1736536022802,2.6366,189.63,189.58,2.6372]
[1736536023206,3.1853,189.67,189.53,25.93753801]
[1736536023402,12.01764591,189.7,189.57,12.01764591]
[1736536024399,12.01764591,189.67,189.57,12.01764591]
[1736536024604,12.01764591,189.67,189.54,12.01764591]
[1736536024808,12.01764591,189.67,189.54,57.41546106]
[1736536025399,12.01764591,189.7,189.52,1.6276]
[1736536025400,12.01764591,189.64,189.52,1.6276]
[1736536025606,3.1888,189.63,189.52,1.6276]
[1736536026108,2.6367,189.62,189.57,2.6373]
[1736536027009,2.6367,189.62,189.53,1.5313]
[1736536028003,19.24257309,189.68,189.57,2.6373]
[1736536028207,2.6366,189.63,189.53,1.5313]
[1736536028502,19.24257309,189.68,189.53,1.5313]
[1736536028704,3.1693,189.7,189.54,19.24257309]
[1736536029202,2.636,189.67,189.62,2.6366]
[1736536029911,2.6362,189.66,189.62,2.6366]
[1736536031009,2.636,189.67,189.63,2.6365]
[1736536031208,2.636,189.67,189.54,19.24257309]
[1736536031710,3.1693,189.7,189.54,19.24257309]
[1736536031910,2.6363,189.65,189.54,19.24257309]
[1736536032111,3.1693,189.7,189.54,19.24257309]
[1736536032312,19.24257309,189.68,189.59,2.637]
[1736536032812,19.24257309,189.65,189.53,6.4513]
[1736536033008,2.6371,189.6,189.53,6.4513]
[1736536033211,19.24257309,189.62,189.48,1.651]
[1736536033406,3.1291,189.61,189.48,6.571]
[1736536033813,3.1291,189.61,189.48,1.651]
[1736536034113,19.24257309,189.59,189.45,1.539]
[1736536034808,24.50457309,189.59,189.45,1.539]
[1736536035307,19.24257309,189.59,189.45,1.539]
[1736536035813,24.50457309,189.59,189.45,1.539]
[1736536036212,19.24257309,189.59,189.45,1.539]
[1736536036619,2.6379,189.54,189.49,2.6384]
[1736536038318,19.24257309,189.53,189.44,21.81466845]
[1736536038612,3.1836,189.52,189.45,44.22110833]
[1736536039307,3.1836,189.52,189.42,21.81466845]
[1736536039914,19.24257309,189.5,189.42,21.81466845]
[1736536040217,19.24257309,189.5,189.38,26.75466845]
[1736536040414,2.639,189.46,189.41,2.6396]
[1736536041212,2.639,189.46,189.42,2.6394]
[1736536044012,19.24257309,189.5,189.35,19.24257309]
[1736536044215,2.6392,189.44,189.39,2.6398]
[1736536045020,19.24257309,189.5,189.39,2.6398]
[1736536045423,2.6392,189.45,189.39,2.6398]
[1736536046310,19.24257309,189.47,189.31,21.81466845]
[1736536046522,19.24257309,189.44,189.31,21.81466845]
[1736536046824,4.8179,189.43,189.31,21.81466845]
[1736536047216,4.8179,189.43,189.37,2.6402]
[1736536047615,4.8179,189.43,189.33,12.04853954]
[1736536047820,12.04853954,189.48,189.36,12.04853954]
[1736536048113,16.78883954,189.48,189.36,12.04853954]
[1736536048316,2.6393,189.43,189.36,12.04853954]
[1736536049624,2.6393,189.43,189.38,2.64]
[1736536049922,16.78883954,189.48,189.36,12.04853954]
[1736536049923,2.6395,189.42,189.36,12.04853954]
[1736536050222,2.6395,189.42,189.37,2.64]
[1736536050421,2.6395,189.42,189.36,12.04853954]
[1736536050818,2.6395,189.42,189.37,2.6401]
[1736536051124,2.6399,189.39,189.27,33.86320799]
[1736536051425,12.04853954,189.39,189.32,2.6407]
[1736536051922,12.04853954,189.39,189.27,21.81466845]
[1736536052121,12.04853954,189.36,189.27,21.81466845]
[1736536052320,2.6408,189.33,189.27,21.81466845]
[1736536052724,12.04853954,189.36,189.27,2.6414]
[1736536053024,2.6409,189.32,189.27,2.6414]
[1736536053230,12.04853954,189.36,189.27,2.6414]
[1736536053523,4.7839,189.38,189.25,20.95466037]
[1736536053822,19.29606037,189.47,189.31,19.29606037]
[1736536054029,2.6395,189.42,189.31,19.29606037]
[1736536054217,24.09406037,189.47,189.31,24.29606037]
[1736536054524,2.639,189.46,189.34,19.29606037]
[1736536054720,4.798,189.47,189.34,19.29606037]
[1736536054921,7.4369,189.47,189.34,19.29606037]
[1736536055121,4.798,189.47,189.34,19.29606037]
[1736536055521,4.798,189.47,189.4,2.6396]
[1736536055522,7.4369,189.47,189.4,2.6396]
[1736536055719,7.4369,189.47,189.22,58.1724492]
[1736536055924,2.6396,189.42,189.36,2.6403]
[1736536056522,2.6393,189.43,189.37,2.6401]
[1736536057325,2.6393,189.43,189.38,2.64]
[1736536057520,2.6393,189.43,189.29,19.29606037]
[1736536057918,24.09406037,189.47,189.29,19.29606037]
[1736536058320,4.798,189.47,189.32,19.29606037]
[1736536058518,4.798,189.47,189.33,4.98]
[1736536058722,2.6391,189.45,189.33,4.98]
[1736536059328,2.6392,189.44,189.39,2.6398]
[1736536059629,2.6392,189.44,189.33,4.98]
[1736536059630,4.798,189.47,189.35,19.29606037]
[1736536059830,2.639,189.46,189.4,2.6396]
[1736536060123,4.798,189.47,189.36,1.5927]
[1736536060329,1.5905,189.47,189.36,3.2225]
[1736536060525,4.2294,189.47,189.36,3.2225]
[1736536061129,4.2294,189.47,189.41,2.6395]
[1736536061531,4.2294,189.47,189.42,2.6393]
[1736536061728,2.6385,189.49,189.36,3.2225]
[1736536061931,4.8136,189.53,189.36,3.2225]
[1736536062135,4.8136,189.53,189.42,2.6394]
[1736536062730,4.8136,189.53,189.36,4.8453]
[1736536062934,19.29606037,189.47,189.36,9.8053]
[1736536063129,19.29606037,189.5,189.36,9.8053]
[1736536063325,19.29606037,189.5,189.41,2.6395]
[1736536063731,2.6388,189.47,189.36,9.8053]
[1736536063930,19.29606037,189.5,189.41,2.6395]
[1736536064131,19.29606037,189.5,189.36,9.8053]
[1736536064330,2.6389,189.46,189.36,9.8053]
[1736536064534,2.6389,189.46,189.4,2.6397]
[1736536064932,19.29606037,189.44,189.32,21.81466845]
[1736536065331,2.6398,189.4,189.31,5.0]
[1736536065723,2.6398,189.4,189.35,2.6404]
[1736536067036,2.6396,189.42,189.36,2.6403]
[1736536067237,2.6396,189.42,189.31,5.0]
[1736536067632,2.6396,189.42,189.37,2.64]
[1736536068534,4.1984,189.43,189.38,2.6399]
[1736536069334,3.1797,189.45,189.32,19.29606037]
[1736536069528,19.29606037,189.5,189.35,19.29606037]
[1736536069733,2.6388,189.47,189.4,2.6397]
[1736536070034,2.6388,189.47,189.36,3.0337]
[1736536070338,2.6388,189.47,189.42,2.6393]
[1736536070525,19.29606037,189.5,189.42,2.6393]
[1736536070730,2.6389,189.46,189.42,2.6393]
[1736536072831,2.6393,189.43,189.39,7.6197]
[1736536073033,19.29606037,189.44,189.33,4.96]
[1736536073235,19.29606037,189.44,189.31,24.96276845]
[1736536073435,2.6399,189.39,189.35,2.6403]
[1736536073828,4.7618,189.43,189.32,4.98]
[1736536074232,4.7618,189.43,189.31,3.1481]
[1736536074437,4.7618,189.43,189.32,4.96]
[1736536075042,2.6395,189.42,189.37,2.64]
[1736536075239,4.7618,189.43,189.33,4.96]
[1736536076340,2.6396,189.41,189.37,2.64]
[1736536076641,4.7618,189.43,189.33,4.96]
[1736536076840,7.4012,189.43,189.36,2.6403]
[1736536077038,2.6394,189.43,189.33,4.96]
[1736536077438,2.6394,189.43,189.33,17.00866471]
[1736536078135,12.04866471,189.42,189.37,2.64]
[1736536078337,12.04866471,189.42,189.33,4.96]
[1736536079042,2.6399,189.39,189.36,2.6403]
[1736536079339,12.04866471,189.42,189.33,4.96]
[1736536079541,12.04866471,189.45,189.33,17.00866471]
[1736536079739,12.04866471,189.48,189.36,12.04866471]
[1736536080237,12.04866471,189.45,189.33,17.00866471]
[1736536080429,12.04866471,189.45,189.34,7.32970187]
[1736536080630,2.6395,189.42,189.38,2.6399]
[1736536080833,12.04866471,189.42,189.34,7.32970187]
[1736536081234,2.6401,189.38,189.34,9.97020187]
[1736536081440,12.04866471,189.39,189.31,7.32970187]
[1736536082140,12.04866471,189.39,189.28,8.0669]
[1736536082739,2.6406,189.35,189.3,2.641]
[1736536082935,12.04866471,189.39,189.28,4.94]
[1736536083643,2.6404,189.36,189.31,2.6409]
[1736536083837,2.6404,189.36,189.28,4.94]
[1736536083838,12.04866471,189.39,189.28,4.94]
[1736536084441,3.1837,189.41,189.3,12.04866471]
[1736536085232,2.6399,189.39,189.3,12.04866471]
[1736536085633,3.1837,189.41,189.3,12.04866471]
[1736536085833,2.6401,189.38,189.33,2.6406]
[1736536086242,2.6401,189.38,189.28,4.94]
[1736536087133,3.1837,189.41,189.3,12.04866471]
[1736536087338,12.04866471,189.42,189.3,12.04866471]
[1736536087941,12.04866471,189.45,189.31,1.5827]
[1736536088343,2.6393,189.44,189.33,12.04866471]
[1736536088543,12.04866471,189.45,189.33,12.04866471]
[1736536089042,12.04866471,189.45,189.34,1.5423]
[1736536089346,12.04866471,189.45,189.42,2.6394]
[1736536090046,2.6388,189.47,189.42,2.6394]
[1736536090245,12.04866471,189.48,189.44,2.6392]
[1736536090441,12.04866471,189.48,189.37,4.92]
[1736536090636,14.68726471,189.48,189.43,2.6392]
[1736536090846,14.68726471,189.48,189.37,4.92]
[1736536091046,12.04866471,189.48,189.37,4.92]
[1736536091741,12.04866471,189.48,189.38,1.617]
[1736536092345,0.39116,189.49,189.39,12.04866471]
[1736536092946,3.02966,189.49,189.45,2.639]
[1736536093152,0.39116,189.49,189.4,4.92]
[1736536093543,3.02966,189.49,189.4,4.92]
[1736536094151,3.02966,189.49,189.44,2.6391]
[1736536094357,3.02966,189.49,189.4,4.92]
[1736536094547,0.39116,189.49,189.4,4.92]
[1736536094945,0.39116,189.49,189.41,12.04866471]
[1736536096651,0.39116,189.49,189.43,2.6393]
[1736536096846,0.39116,189.49,189.4,4.92]
[1736536097543,0.39116,189.49,189.42,2.6394]
[1736536097747,0.39116,189.49,189.4,4.9]
[1736536097948,12.04866471,189.48,189.4,4.9]
[1736536098347,2.6388,189.47,189.42,2.6394]
[1736536098545,12.04866471,189.48,189.4,4.9]
[1736536099052,0.39116,189.49,189.4,4.9]
[1736536099445,0.39116,189.49,189.46,2.6389]
[1736536101852,0.39116,189.49,189.4,4.9]
[1736536102950,0.39116,189.49,189.48,2.6386]
[1736536103149,0.39116,189.49,189.4,4.9]